Cogmind - Beta 14 @@@ ROGUE MODE // 2024.10.06 @ 20:25:38 Player: MarKhan Result: Destroyed by XE-XXV(R) with Subdweller Machine Gun Performance ------------- Evolutions (0) 0 Regions Visited (2) 400 Robots Destroyed (39) 195 Value Destroyed (952) 952 Prototype IDs (4) 80 Alien Tech Used (0) 0 Bonus (22) 22 TOTAL SCORE: 1649 Bonus ------- High Alert Combat Kills 22 Cogmind --------- Core Integrity 0/250 Matter 162/300 Energy 79/125 System Corruption 2% Temperature Cool (0) Movement Treading (320) Ox2 Location -10/Subcaves Parts ------- > --- POWER (1) -------- Light Ion Engine > --- PROPULSION (2) --- Light Treads Light Treads > --- UTILITY (2) ------ Huge Storage Unit Core Shielding > --- WEAPON (2) ------- Subdweller Beam Cannon Battle Cannon > --- INVENTORY (25) --- Light Ion Engine Subdweller Power Source Light Treads Wheel Subdweller Monowheel Subdweller Monowheel Subdweller Monowheel Heat Sink Large Battery (200) High-capacity Matter Pod (200) High-capacity Matter Pod (0) Subdweller Optics Sensor Array Seismic Detector Core Shielding Power Shielding Scrap Shield Tractor Beam Subdweller Machine Gun Subdweller Machine Gun Mining Claw Scrap Shield Fragment (49) Scrap Shield Fragment (49) Scrap Shield Fragment (49) Peak State ------------ > --- POWER ------------ Subdweller Power Source > --- PROPULSION ------- Subdweller Monowheel Subdweller Monowheel > --- UTILITY ---------- Huge Storage Unit Seismic Detector > --- WEAPON ----------- Subdweller Laser Subdweller Machine Gun > --- INVENTORY -------- Light Ion Engine Light Ion Engine Subdweller Power Source Light Treads Light Treads Light Treads Light Treads Wheel Subdweller Monowheel Heat Sink Large Battery High-capacity Matter Pod High-capacity Matter Pod Subdweller Optics Sensor Array Core Shielding Core Shielding Power Shielding Scrap Shield Tractor Beam Beam Cannon Mining Claw Scrap Shield Fragment Scrap Shield Fragment [Rating: 15] Favorites ----------- Power Light Ion Engine Engine Light Ion Engine Propulsion Wheel Treads Light Treads Wheel Wheel Utility Huge Storage Unit Device Improved Terrain Scanner Storage Huge Storage Unit Protection Core Shielding Weapon Beam Cannon Energy Gun EM Pulse Gun Energy Cannon Beam Cannon Ballistic Gun Assault Rifle Ballistic Cannon Light Cannon Slashing Weapon Mining Claw Build | -11 -10 -10 ------- Run | Yrd Mat Sub Slots Evolved . | . . . Power . | . . . Propulsion . | . . . Utility . | . . . Weapon . | . . . Parts Attached 102 | 7 29 66 Power 8 | 1 3 4 Engine 8 | 1 3 4 Core . | . . . Reactor . | . . . Propulsion 45 | 2 11 32 Treads 22 | . 5 17 Leg . | . . . Wheel 23 | 2 6 15 Hover . | . . . Flight . | . . . Utility 25 | 2 9 14 Device 15 | 1 6 8 Storage 3 | 1 2 . Processor . | . . . Hackware . | . . . Protection 7 | . 1 6 Artifact . | . . . Weapon 24 | 2 6 16 Energy Gun 5 | 1 2 2 Energy Cannon 3 | . 2 1 Ballistic Gun 8 | 1 . 7 Ballistic Cannon 2 | . 1 1 Launcher . | . . . Special Weapon . | . . . Impact Weapon . | . . . Slashing Weapon 6 | . 1 5 Piercing Weapon . | . . . Special Melee Weapon . | . . . Unidentified Prototypes . | . . . Parts Lost 11 | . 4 7 Power 2 | . 2 . Propulsion 3 | . . 3 Utility 2 | . 1 1 Weapon 4 | . 1 3 Highest Loss Streak 4 | . 2 4 To Critical Strikes . | . . . Average Slot Usage (%) 99 | . 99 99 Engine 13 | . 13 14 Treads 3 | . 2 5 Wheel 24 | . 25 22 Device 10 | . 13 6 Storage 14 | . 14 14 Protection 3 | . . 7 Energy Gun 5 | . 8 2 Energy Cannon 11 | . 13 9 Ballistic Gun 3 | . . 5 Ballistic Cannon 4 | . 4 5 Slashing Weapon 2 | . . 4 Peak Build Rating 15 | 7 11 15 Average Rating 10 | 5 9 12 On Entrance 6 | . 7 11 Naked Turns . | . . . Heaviest Build 97 | 12 89 97 Greatest Support 40 | 26 40 40 Greatest Overweight (x) 4 | 2 4 4 Average Overweight (x) 2 | . 2 2 Largest Inventory Capacity 25 | 8 25 25 Average Capacity 21 | 7 18 25 Most Carried 25 | 7 25 25 Average Carried 18 | 3 14 24 Final Capacity 25 | 8 25 25 Final Carried 25 | 6 25 25 Class Distribution -------------------- 87% | Mutant 12% | Scavenger-Mutant Dominant Class ---------------- Mutant | -10/Materials Mutant | -10/Subcaves Resources | -11 -10 -10 ----------- Run | Yrd Mat Sub Matter Collected 1692 | 238 684 770 Remotely 212 | . 212 . Salvage Created 1269 | 25 762 482 Parts 84 | 4 54 26 Haulers Intercepted 2 | . 2 . Recyclers Shooed 2 | 1 1 . Parts Field Recycled . | . . . Retrieved Matter . | . . . Parts Self-Destructed 8 | . . 8 Prevented . | . . . Kills | -11 -10 -10 ------- Run | Yrd Mat Sub Combat Hostiles Destroyed 28 | . 19 9 Guns 5 | . . 5 Cannons 23 | . 19 4 Classes Destroyed 9 | 1 7 1 Worker 1 | . 1 . Tunneler 2 | 1 1 . Hauler 2 | . 2 . Recycler 1 | . 1 . Operator 2 | . 2 . Watcher 3 | . 3 . Swarmer 8 | . 8 . Grunt 11 | . 11 . Subdweller 9 | . . 9 Best Kill Streak 8 | 1 8 2 Combat Bots Only 5 | . 5 2 Max Kills in Single Turn 1 | 1 1 1 Gunslinging . | . . . Exploded . | . . . Melee . | . . . Uniques/NPCs Destroyed . | . . . Combat | -11 -10 -10 -------- Run | Yrd Mat Sub Hostile Shots Fired 179 | . 89 90 Missed 39 | . 20 19 Damage Taken 2178 | . 660 1518 Core 258 | . 92 166 Absorbed by Shields . | . . . Redirected to Shielding 40 | . 4 36 Regen/Repaired (Parts) 90 | . 90 . Core Remaining (%) 100 | 100 . . Volleys Fired 111 | 2 54 55 Largest 2 | 2 2 2 Hottest 119 | 60 100 119 Shots Fired 205 | 4 102 99 Gun 48 | 4 7 37 Cannon 157 | . 95 62 Launcher . | . . . Special . | . . . Kinetic 94 | 2 48 44 Thermal 100 | 2 49 49 Explosive . | . . . Electromagnetic 11 | . 5 6 Robot Hit Streak 11 | 1 7 11 Robot Miss Streak 4 | 1 4 3 Penetration Max . | . . . Secondary Targets . | . . . Shots Hit Robots 138 | 2 57 79 Core Hits 51 | 1 30 20 Critical Kills . | . . . Critical Parts Destroyed . | . . . Critical Strikes 3 | . 2 1 Destroy 1 | . . 1 Blast 2 | . 2 . Melee Attacks 23 | . 3 20 Impact . | . . . Slashing 23 | . 3 20 Piercing . | . . . Sneak Attacks . | . . . Combat Hostiles . | . . . Follow-up Attacks . | . . . Damage Inflicted 2558 | 20 1037 1501 Guns 499 | 20 26 453 Cannons 1865 | . 1011 854 Explosions . | . . . Melee 194 | . . 194 Ramming . | . . . Kinetic 1075 | 10 499 566 Thermal 1233 | 10 525 698 Explosive . | . . . Electromagnetic 56 | . 13 43 Impact . | . . . Slashing 194 | . . 194 Piercing . | . . . Highest Corruption 2 | . 2 2 Average Corruption 2 | . 2 2 Corruption Purged . | . . . Corruption Blocked . | . . . Effects 18 | . 7 11 Message Errors 6 | . 2 4 Heat Flow Errors 5 | . 1 4 Energy Discharges 3 | . 2 1 Data Loss (minor) 4 | . 2 2 Overload Shots . | . . . Overflow Damage 11 | . 11 . Projectiles 11 | . 11 . Explosions . | . . . Melee . | . . . Knockbacks 6 | . 3 3 Impact . | . . . Kinetic 6 | . 3 3 Secondary . | . . . Self-Inflicted Damage . | . . . Shots . | . . . Rammed . | . . . Targets Rammed . | . . . Kicked . | . . . Crushed . | . . . Highest Temperature 307 | . 307 260 Average Temperature 84 | . 81 115 Received Heat Transfer 360 | . 174 186 Siege Activations . | . . . Robots Corrupted . | . . . Combat Hostiles . | . . . Parts Fried . | . . . Impact Corruptions . | . . . Robots Melted . | . . . Combat Hostiles . | . . . Parts Melted 2 | . 1 1 Heat Transferred 2518 | 25 1110 1383 Parts Sabotaged . | . . . Parts Stolen . | . . . Parts Stripped . | . . . Power Chain Reactions . | . . . Alert | -11 -10 -10 ------- Run | Yrd Mat Sub Peak Influence 484 | 5 484 . Initial 3 | . 3 . Average 267 | 2 279 . Maximum Alert Level 2 | . 2 . Low Security (%) 34 | 100 31 . Level 1 44 | . 47 . Level 2 20 | . 21 . Level 3 . | . . . Level 4 . | . . . Level 5 . | . . . High Security . | . . . Max Security . | . . . Squads Dispatched 6 | . 6 . Investigation 4 | . 4 . Extermination . | . . . Reinforcement 2 | . 2 . Assault . | . . . Garrison . | . . . Intercept . | . . . Searches Triggered . | . . . Construction Impeded . | . . . Haulers Reinforced . | . . . Active Scanning Responses . | . . . Cargo Convoy Interrupts . | . . . Stealth | -11 -10 -10 --------- Run | Yrd Mat Sub Distress Signals 3 | . 3 . Communications Jammed . | . . . Distress Signals . | . . . Times Spotted 36 | . 26 10 Peak Tracking Total 7 | . 7 2 Tactical Retreats 1 | . 1 . Traps | -11 -10 -10 ------- Run | Yrd Mat Sub Traps Triggered 2 | . 1 1 Indirectly . | . . . Trap Hack Attempts . | . . . Triggered . | . . . Disarmed . | . . . Reprogrammed . | . . . Reused . | . . . Traps Extracted . | . . . Installed . | . . . Triggered . | . . . Machines | -11 -10 -10 ---------- Run | Yrd Mat Sub Machines Disabled 2 | . 2 . Max in Single Turn 1 | . 1 . Machines Repaired . | . . . Machines Dismantled . | . . . Machines Sabotaged . | . . . Overloaded Fab Kills . | . . . Hacking | -11 -10 -10 --------- Run | Yrd Mat Sub Machines Accessed 10 | . 8 2 Terminals 5 | . 5 . Fabricators . | . . . Repair Stations 1 | . 1 . Recycling Units 2 | . 2 . Scanalyzers . | . . . Garrison Access . | . . . Total Hacks 32 | . 29 3 Successful 21 | . 18 3 Failed 11 | . 11 . Catastrophic 1 | . 1 . Database Lockouts . | . . . Manual 8 | . 8 . Terminals 19 | . 19 . Fabricators . | . . . Repair Stations 3 | . 3 . Recycling Units 7 | . 7 . Scanalyzers . | . . . Garrison Access . | . . . Terminal Hacks 12 | . 9 3 Record 1 | . . 1 Prototype ID Bank 2 | . 2 . Open Door 1 | . . 1 Alert Level 1 | . 1 . Unreport Threat 1 | . 1 . Locate Traps 2 | . 2 . Maintenance Status 1 | . 1 . Zone Layout 2 | . 2 . Release Object 1 | . . 1 Fabricator Hacks . | . . . Repair Station Hacks 2 | . 2 . Scan Component 1 | . 1 . Repair 1 | . 1 . Recycling Unit Hacks 2 | . 2 . Report Inventory 1 | . 1 . Retrieve Components 1 | . 1 . Scanalyzer . | . . . Garrison Access Hacks . | . . . Unauthorized Hacks 5 | . 5 . Terminals 2 | . 2 . Botnet 2 | . 2 . Fabricators . | . . . Repair Stations . | . . . Recycling Units 3 | . 3 . Recyclers 1 | . 1 . Tunnel 2 | . 2 . Scanalyzers . | . . . Garrison Access . | . . . Data Cores Recovered . | . . . Used . | . . . Hacking Detections 5 | . 5 . Full Trace Events 5 | . 5 . Feedback Events . | . . . Feedback Blocked . | . . . Robot Schematics Acquired . | . . . Robots Built . | . . . Authchips . | . . . Time . | . . . Total Robot Build Rating . | . . . Part Schematics Acquired . | . . . Parts Built . | . . . Authchips . | . . . Time . | . . . Total Part Build Rating . | . . . Parts Repaired 1 | . 1 . Time 26 | . 26 . Parts Recycled . | . . . Recycled Matter . | . . . Retrieved Matter . | . . . Retrieved Components 2 | . 2 . Parts Scanalyzed . | . . . Part Schematics Acquired . | . . . Parts Damaged . | . . . Bothacking | -11 -10 -10 ------------ Run | Yrd Mat Sub Used RIF Installer . | . . . Robots Hacked . | . . . Non-combat . | . . . Combat . | . . . Robot Hacks Applied . | . . . Relay Couplers Released . | . . . Fabnet Peak Effective % . | . . . Robots Rewired . | . . . Allies Hacked . | . . . Hacks Repelled . | . . . Allies | -11 -10 -10 -------- Run | Yrd Mat Sub Total Allies . | . . . Largest Group . | . . . Highest-Rated Group . | . . . Highest-Rated Ally . | . . . Total Orders . | . . . Ally Attacks . | . . . Total Damage . | . . . Kills . | . . . Allies Corrupted . | . . . Allies Melted . | . . . Intel | -11 -10 -10 ------- Run | Yrd Mat Sub Robot Analysis Total . | . . . Derelict Logs Recovered 1 | . . 1 Drone Launches . | . . . Drone Recoveries . | . . . Exploration | -11 -10 -10 ------------- Run | Yrd Mat Sub Turns Passed 2729 | 67 1410 1252 Spaces Moved 1700 | 51 978 671 Core 7 | 7 . . Treads 43 | . 30 13 Legs . | . . . Wheels 1650 | 44 948 658 Hover . | . . . Flight . | . . . Fastest Speed 50 | 50 80 130 Average Speed 124 | 87 118 136 Slowest Speed 320 | 150 160 320 Overloaded Moves . | . . . Propulsion Burnouts . | . . . Robots Hopped . | . . . Cave-ins Triggered . | . . . Exploration Rate (%) 45 | 3 93 39 Regions Visited 2 Branch Regions 1 Pre-discovered Areas 3 | . 2 1 Known Exits Taken . | . . . Unknown Exits Taken 2 | 1 1 . Scrap Searched 2 | . . 2 Spaces Dug 2 | . 2 . Terrain Destroyed 2 | . 2 . Melee 2 | . 2 . Projectile . | . . . AOE . | . . . Terrain Rammed . | . . . Walls Destroyed . | . . . Machines Disabled . | . . . Actions | -11 -10 -10 --------- Run | Yrd Mat Sub Total 2047 | 66 1125 856 Wait 18 | . 11 7 Move 1698 | 50 977 671 Hop . | . . . Pick Up 59 | 7 34 18 Fast Attach 9 | 6 2 1 Attach 12 | 1 4 7 Detach . | . . . Swap 81 | . 23 58 Drop 35 | . 17 18 Fire 111 | 2 54 55 Melee 23 | . 3 20 Ram . | . . . Kick . | . . . Crush . | . . . Escape Stasis . | . . . Rewire . | . . . Trap . | . . . Miscellaneous 1 | . . 1 Route ------- -11/Scrapyard -10/Materials (discovered 5 exits: [*Mat x3] / [*Min] / *Sub) -10/Subcaves (discovered 1 exit: [*Mat]) History --------- Turn | Location | Event 11 | -11/Scrapyard | Discovered new exit (range 16) 68 | -11/Scrapyard | Entered Materials 207 | -10/Materials | Discovered new exit (range 3) 302 | -10/Materials | Build established: Mutant 518 | -10/Materials | Discovered new exit (range 10) 649 | -10/Materials | Discovered new exit (range 13) 748 | -10/Materials | Discovered new exit (range 11) 847 | -10/Materials | Repaired Beam Cannon 1233 | -10/Materials | Discovered new exit (range 7) 1478 | -10/Materials | Entered Subcaves 1598 | -10/Subcaves | Core integrity fell below 50% 1648 | -10/Subcaves | Lost 4 parts (2n2w) 1736 | -10/Subcaves | A swath of the cavern ceiling suddenly collapsed 2112 | -10/Subcaves | A swath of the cavern ceiling suddenly collapsed 2280 | -10/Subcaves | Core integrity fell below 20% 2446 | -10/Subcaves | Learned location of Zion (-6) 2446 | -10/Subcaves | Met a Zionite searching for "candidates" 2524 | -10/Subcaves | Released subatomizers from SUBCON Basin 2579 | -10/Subcaves | Discovered new exit (range 15) 2722 | -10/Subcaves | Disturbed a concealed Subdweller 2730 | -10/Subcaves | Destroyed by XE-XXV(R) with Subdweller Machine Gun Last Messages --------------- 02548_ Dropped Broken Sub. Power Source. 02579_ EXIT=FOUND 02625_ X0-6N9(R) knocked back. 02631_ X0-6N9(R) destroyed. 02638_ Acquired Sub. Monowheel. 02643_ Acquired Scrap Shield Fragment. 02644_ Acquired 32 matter. 02669_ Acquired 3 matter. 02716_ Searching scrap... 02716_ Found Mak. Flight Unit. 02716_ Found 33 Matter. 02717_ Acquired 33 matter. 02720_ Searching scrap... 02720_ Found Shrapnel Trap. 02720_ Found 42 Matter. 02721_ Acquired 42 matter. 02722_ XE-XXV(R) angrily emerges from the Twisted Machinery. 02730_ System corrupted: Component data lost. 02730_ XE-XXV(R) knocked back. Map ----- +----------------------------------------------------+ | | | | | | | | | | | | | | | | | | | | | | | | | | | | | | | | | | | | | ?????????????????????????????????????????????????? | | ?????????????????????????????????????????????????? | | ?????????????##############??????????????????????? | | ????????????## < <<< $ $$##?????????????????????? | | ????????????# << < $ $#?????????????????????? | | ????????????#< % $ $#?????????????????????? | | ????????????#<< <& & #?????????????????????? | | ????????????# &R = @<#?????????????????????? | | ????????????# " "## <<<<####?????????????????????? | | ????????????# "########????????????????????????? | | ????????????#" "" ######?????????????????????????? | | ????????????## # #?????????????????????????? | | ?????????????#" ##?????????????????????????? | | ?????????????## ## #?????????????????????????? | | ????????????#######" ######???##???????????????? | | ????######### ### " ## #### ##??????????????? | | ????? #??????????????? | | ????? #####???????????? | | ???????# ### ### ##??????????? | | ???????##### ### ### "##?????????? | | ???????# # # ""### "" ###???????? | | ???????# < ##& "" #???????? | | ???????# #### "" & &" ##??????? | | ???????## # ####??#########"" "" ## ## | | ????????# #####?????????????## # "# "" | | ???????## ### #??????????????#" """""" " "" | | ????#### #??????????????##"""""""" "" ### | | ????# ## #???????????????###"# # "# " ###?? | | ????# #?????????????????######## "##??## | | #??### #????????????????????????# #?## | | #?## ## ##????????????????????????## ## | | ### # #??????????????????????????? | +----------------------------------------------------+ Best States ------------- Heat Dissipation 25 Energy Generation 15 Energy Capacity 250 Matter Stores 300 Matter Capacity 300 Sight Range 16 Terrain Scan Range 16 Terrain Scan Density 10 Core Shielding 20 Evasion (%) 44 Recoil Reduction 2 Item Schematics ----------------- None Robot Schematics ------------------ None Fabricated ------------ Nothing Alien Tech Used ----------------- None Achievements -------------- None Challenges ------------ None Game ------ Seed FocalLongswordMagmablaster Manual? 0 Play Time 00:38:30 Cumulative 62.7 hours Start 2024.10.06 @ 19:48:28 End 2024.10.06 @ 20:25:38 Sessions 1 Manual Loads 0 Difficulty Rogue Special Mode None Game No. 60 Rogue 60 Adventurer 0 Explorer 0 Win Type - Total 2 Types 2/0/0/0/0/0/0/0/0 Lore% 36 Gallery% 41 Achievement% 39 Wizard Run 0 Options --------- Layout 1 ASCII 0 Keyboard 1 Movement Arrows Keybinds 0 Fullscreen 2 Font 24/Smallcaps Map View 50x35 Zoom Use 0% Tactical HUD 1 Map Filters NONE Filters NONE Steam 1 RUN: c3f8d120-0e49-4a45-84ad-f9c175e5e2bf